fUST/lending_fUST_20250311
["ID","MTS","AMOUNT","RATE_DAILY","PERIOD"]
[355884974,1741679439740,-159.47,0.00041084,2]
[355884975,1741679439749,-159.47,0.00041084,2]
[355884976,1741679439758,-56858.0825328,0.00041085,3]
[355884977,1741679439770,-160.0,0.00041085,3]
[355884978,1741679439779,-85287.1237992,0.00041085,3]
[355884979,1741679439788,-118632.16170889,0.00041094,36]
[355884980,1741679439947,-1846.69471249,0.00041094,36]
[355885004,1741679443669,-123.85863332,0.00041094,36]
[355885005,1741679444035,-8.23957608,0.00041094,36]
[355885007,1741679446683,-96.42327815,0.00041094,36]
[355885008,1741679446746,-136294.04224255,0.00041094,36]
[355885009,1741679446768,-500.0,0.00041095,120]
[355885010,1741679446778,-500.0,0.00041095,120]
[355885011,1741679446787,-160.0,0.00041095,7]
[355885012,1741679446797,-481.60413132,0.00041095,120]
[355885013,1741679446807,-500.0,0.00041095,120]
[355885014,1741679446816,-500.0,0.00041095,120]
[355885015,1741679446826,-500.0,0.00041095,120]
[355885016,1741679446836,-592.84,0.00041095,120]
[355885017,1741679446845,-542.66380525,0.00041095,120]
[355885018,1741679446854,-500.0,0.00041095,120]
[355885020,1741679446864,-500.0,0.00041095,120]
[355885022,1741679446874,-552.12977254,0.00041095,120]
[355885023,1741679446883,-584.93813728,0.00041095,120]
[355885024,1741679446893,-330.96430724,0.00041095,120]
[355885025,1741679446903,-1000.0,0.00041095,20]
[355885026,1741679446913,-500.0,0.00041095,120]
[355885027,1741679446923,-587.65,0.00041095,120]
[355885028,1741679446933,-500.0,0.00041095,120]
[355885029,1741679446943,-500.0,0.00041095,120]
[355885030,1741679446952,-500.0,0.00041095,120]
[355885031,1741679446962,-500.0,0.00041095,120]
[355885032,1741679446971,-500.0,0.00041095,120]
[355885033,1741679446980,-447.21921521,0.00041095,120]
[355885034,1741679446990,-500.0,0.00041095,120]
[355885035,1741679446999,-500.0,0.00041095,120]
[355885036,1741679447009,-500.0,0.00041095,120]
[355885037,1741679447019,-500.0,0.00041095,120]
[355885038,1741679447028,-500.0,0.00041095,120]
[355885039,1741679447038,-560.49099767,0.00041095,20]
[355885040,1741679447048,-842.22,0.00041095,120]
[355885041,1741679447058,-500.0,0.00041095,120]
[355885042,1741679447067,-808.2,0.00041095,120]
[355885043,1741679447076,-500.0,0.00041095,120]
[355885044,1741679447086,-636.84,0.00041095,120]
[355885045,1741679447095,-500.0,0.00041095,120]
[355885046,1741679447104,-500.0,0.00041095,120]
[355885047,1741679447114,-500.0,0.00041095,120]
[355885048,1741679447123,-1005.18,0.00041095,120]
[355885049,1741679447132,-500.0,0.00041095,120]
[355885050,1741679447142,-500.0,0.00041095,120]
[355885051,1741679447151,-500.0,0.00041095,120]
[355885052,1741679447161,-627.14,0.00041095,120]
[355885053,1741679447170,-475.12603792,0.00041095,120]
[355885054,1741679447180,-500.0,0.00041095,120]
[355885055,1741679447190,-583.01,0.00041095,7]
[355885056,1741679447201,-500.0,0.00041095,120]
[355885057,1741679447210,-500.0,0.00041095,120]
[355885058,1741679447220,-500.0,0.00041095,120]
[355885059,1741679447230,-517.39590568,0.00041095,120]
[355885060,1741679447239,-500.0,0.00041095,120]
[355885061,1741679447248,-500.0,0.00041095,120]
[355885062,1741679447258,-500.0,0.00041095,120]
[355885063,1741679447268,-500.0,0.00041095,120]
[355885064,1741679447278,-300.0,0.00041095,120]
[355885065,1741679447287,-441.0082024,0.00041095,20]
[355885066,1741679447297,-500.0,0.00041095,120]
[355885067,1741679447307,-500.0,0.00041095,120]
[355885068,1741679447316,-514.44376667,0.00041095,120]
[355885069,1741679447325,-500.0,0.00041095,120]
[355885070,1741679447335,-500.0,0.00041095,120]
[355885071,1741679447349,-500.0,0.00041095,120]
[355885072,1741679447359,-500.0,0.00041095,120]
[355885073,1741679447368,-500.0,0.00041095,120]
[355885074,1741679447383,-500.0,0.00041095,120]
[355885075,1741679447392,-531.85443734,0.00041095,120]
[355885076,1741679447402,-500.0,0.00041095,120]
[355885077,1741679447411,-500.0,0.00041095,120]
[355885078,1741679447423,-500.0,0.00041095,120]
[355885079,1741679447433,-506.90111563,0.00041095,120]
[355885080,1741679447443,-500.0,0.00041095,120]
[355885081,1741679447453,-510.99807772,0.00041095,120]
[355885082,1741679447463,-529.12628769,0.00041095,120]
[355885083,1741679447473,-500.0,0.00041095,120]
[355885084,1741679447483,-500.0,0.00041095,120]
[355885085,1741679447492,-500.0,0.00041095,120]
[355885086,1741679447502,-500.0,0.00041095,120]
[355885087,1741679447512,-500.0,0.00041095,120]
[355885088,1741679447523,-510.26861084,0.00041095,14]
[355885089,1741679447532,-670.31,0.00041095,120]
[355885090,1741679447542,-500.0,0.00041095,120]
[355885091,1741679447551,-500.0,0.00041095,120]
[355885092,1741679447560,-500.0,0.00041095,120]
[355885093,1741679447570,-526.6617665,0.00041095,120]
[355885094,1741679447579,-500.0,0.00041095,120]
[355885095,1741679447588,-500.0,0.00041095,120]
[355885096,1741679447598,-500.0,0.00041095,120]
[355885098,1741679447607,-537.16681621,0.00041095,14]
[355885099,1741679447617,-500.0,0.00041095,120]
[355885100,1741679447626,-500.0,0.00041095,120]
[355885101,1741679447636,-520.56,0.00041095,120]
[355885102,1741679447645,-500.0,0.00041095,120]
[355885103,1741679447654,-500.0,0.00041095,120]
[355885104,1741679447663,-500.0,0.00041095,120]
[355885105,1741679447673,-500.0,0.00041095,120]
[355885106,1741679447682,-500.0,0.00041095,120]
[355885107,1741679447692,-500.0,0.00041095,120]
[355885108,1741679447701,-500.0,0.00041095,120]
[355885109,1741679447710,-500.0,0.00041095,120]
[355885110,1741679447719,-538.93236233,0.00041095,120]
[355885111,1741679447729,-500.0,0.00041095,120]
[355885112,1741679447738,-505.61,0.00041095,120]
[355885113,1741679447748,-500.0,0.00041095,120]
[355885114,1741679447758,-500.0,0.00041095,120]
[355885115,1741679447768,-500.0,0.00041095,120]
[355885116,1741679447778,-739.52,0.00041095,120]
[355885117,1741679447787,-500.0,0.00041095,120]
[355885118,1741679447796,-500.0,0.00041095,120]
[355885119,1741679447806,-500.0,0.00041095,120]
[355885120,1741679447815,-500.0,0.00041095,120]
[355885121,1741679447825,-500.0,0.00041095,120]
[355885122,1741679447834,-500.0,0.00041095,120]
[355885123,1741679447844,-550.04285952,0.00041095,120]
[355885124,1741679447854,-500.0,0.00041095,5]
[355885125,1741679447863,-934.89,0.00041095,120]
[355885126,1741679447873,-500.0,0.00041095,120]
[355885127,1741679447883,-315.1667909,0.00041095,120]
[355885128,1741679447892,-500.0,0.00041095,120]
[355885129,1741679447902,-500.0,0.00041095,2]
[355885130,1741679447912,-500.0,0.00041095,120]
[355885131,1741679447922,-500.0,0.00041095,120]
[355885132,1741679447931,-725.65,0.00041095,2]
[355885133,1741679447941,-500.0,0.00041095,120]
[355885134,1741679447951,-746.24,0.00041095,120]
[355885135,1741679447960,-506.66,0.00041095,120]
[355885136,1741679447970,-500.0,0.00041095,120]
[355885137,1741679447980,-500.0,0.00041095,120]
[355885138,1741679447989,-508.07,0.00041095,120]
[355885139,1741679447999,-416.66666667,0.00041095,7]
[355885140,1741679448009,-416.66666667,0.00041095,120]
[355885141,1741679448019,-500.0,0.00041095,120]
[355885142,1741679448029,-406.16837293,0.00041095,120]
[355885143,1741679448038,-500.0,0.00041095,120]
[355885144,1741679448048,-500.0,0.00041095,120]
[355885145,1741679448058,-508.00360239,0.00041095,120]
[355885146,1741679448068,-520.18,0.00041095,120]
[355885147,1741679448079,-500.0,0.00041095,120]
[355885148,1741679448088,-523.97743146,0.00041095,120]
[355885149,1741679448098,-500.0,0.00041095,120]
[355885150,1741679448108,-597.24437733,0.00041095,120]
[355885151,1741679448119,-500.0,0.00041095,120]
[355885152,1741679448129,-500.0,0.00041095,120]
[355885153,1741679448139,-500.0,0.00041095,120]
[355885154,1741679448149,-516.38103646,0.00041095,120]
[355885155,1741679448160,-500.0,0.00041095,120]
[355885156,1741679448170,-514.74,0.00041095,120]
[355885157,1741679448180,-407.57600364,0.00041095,120]
[355885158,1741679448190,-723.26,0.00041095,120]
[355885159,1741679448200,-500.0,0.00041095,120]
[355885160,1741679448210,-500.0,0.00041095,120]
[355885161,1741679448219,-500.0,0.00041095,120]
[355885162,1741679448230,-500.0,0.00041095,120]
[355885163,1741679448240,-500.0,0.00041095,120]
[355885164,1741679448250,-500.0,0.00041095,120]
[355885165,1741679448260,-500.0,0.00041095,120]
[355885166,1741679448272,-500.0,0.00041095,120]
[355885167,1741679448282,-645.45934328,0.00041095,120]
[355885168,1741679448292,-500.0,0.00041095,120]
[355885169,1741679448302,-500.0,0.00041095,120]
[355885170,1741679448312,-660.82,0.00041095,120]
[355885171,1741679448322,-500.0,0.00041095,120]
[355885172,1741679448332,-500.0,0.00041095,120]
[355885173,1741679448346,-909.26,0.00041095,120]
[355885174,1741679448356,-500.0,0.00041095,120]
[355885175,1741679448367,-500.0,0.00041095,120]
[355885176,1741679448378,-500.0,0.00041095,120]
[355885177,1741679448389,-500.0,0.00041095,120]
[355885178,1741679448399,-497.97018318,0.00041095,120]
[355885179,1741679448409,-500.0,0.00041095,120]
[355885180,1741679448419,-500.0,0.00041095,120]
[355885181,1741679448429,-500.0,0.00041095,30]
[355885182,1741679448438,-522.35575196,0.00041095,120]
[355885183,1741679448448,-1000.0,0.00041095,2]
[355885184,1741679448457,-1000.0,0.00041095,2]
[355885185,1741679448467,-1000.0,0.00041095,2]
[355885186,1741679448476,-1000.0,0.00041095,2]
[355885187,1741679448485,-500.0,0.00041095,120]
[355885188,1741679448495,-500.0,0.00041095,120]
[355885189,1741679448505,-1000.0,0.00041095,2]
[355885190,1741679448515,-1000.0,0.00041095,2]
[355885191,1741679448527,-1000.0,0.00041095,2]
[355885192,1741679448537,-1000.0,0.00041095,2]
[355885193,1741679448547,-1000.0,0.00041095,90]
[355885194,1741679448557,-1000.0,0.00041095,2]
[355885195,1741679448567,-1000.0,0.00041095,2]
[355885196,1741679448578,-1000.0,0.00041095,2]
[355885197,1741679448587,-1000.0,0.00041095,2]
[355885198,1741679448598,-1000.0,0.00041095,2]
[355885199,1741679448607,-1000.0,0.00041095,2]
[355885200,1741679448617,-1000.0,0.00041095,2]
[355885201,1741679448626,-1739.16,0.00041095,120]
[355885202,1741679448635,-1000.0,0.00041095,2]
[355885203,1741679448645,-1000.0,0.00041095,2]
[355885204,1741679448656,-714.83,0.00041095,120]
[355885205,1741679448666,-1000.0,0.00041095,2]
[355885206,1741679448676,-1000.0,0.00041095,2]
[355885207,1741679448686,-1000.0,0.00041095,2]
[355885208,1741679448696,-500.0,0.00041095,120]
[355885209,1741679448706,-623.84,0.00041095,120]
[355885210,1741679448716,-222.31654125,0.00041095,120]
[355885211,1741679448726,-500.0,0.00041095,120]
[355885212,1741679448735,-500.0,0.00041095,120]
[355885213,1741679448745,-507.55971957,0.00041095,120]
[355885214,1741679448755,-500.0,0.00041095,120]
[355885215,1741679448768,-863.75,0.00041095,120]
[355885216,1741679448778,-500.0,0.00041095,120]
[355885217,1741679448789,-774.14,0.00041095,120]
[355885218,1741679449075,-509.68737836,0.00041095,120]
[355885219,1741679449087,-509.90756306,0.00041095,120]
[355885220,1741679449097,-305.19420202,0.00041095,120]
[355885221,1741679449107,-500.0,0.00041095,120]
[355885222,1741679449116,-645.54,0.00041095,120]
[355885223,1741679449126,-612.31,0.00041095,120]
[355885224,1741679449135,-500.0,0.00041095,120]
[355885225,1741679449145,-500.0,0.00041095,120]
[355885226,1741679449154,-500.0,0.00041095,120]
[355885227,1741679449164,-536.25,0.00041095,120]
[355885228,1741679449174,-500.0,0.00041095,120]
[355885229,1741679449183,-607.38,0.00041095,120]
[355885230,1741679449193,-500.0,0.00041095,120]
[355885231,1741679449203,-500.0,0.00041095,120]
[355885232,1741679449212,-500.0,0.00041095,120]
[355885233,1741679449222,-534.37038516,0.00041095,120]
[355885234,1741679449232,-500.0,0.00041095,120]
[355885235,1741679449241,-500.0,0.00041095,120]
[355885236,1741679449251,-500.0,0.00041095,120]
[355885237,1741679449261,-500.0,0.00041095,120]
[355885238,1741679449272,-664.08,0.00041095,120]
[355885239,1741679449282,-1000.0,0.00041095,5]
[355885240,1741679449292,-500.0,0.00041095,120]
[355885241,1741679449302,-500.0,0.00041095,120]
[355885242,1741679449312,-500.0,0.00041095,120]
[355885243,1741679449321,-535.75144631,0.00041095,120]
[355885244,1741679449330,-618.11,0.00041095,120]
[355885245,1741679449344,-500.0,0.00041095,120]
[355885246,1741679449354,-511.33507312,0.00041095,120]
[355885247,1741679449364,-500.0,0.00041095,120]
[355885248,1741679449374,-500.0,0.00041095,120]
[355885249,1741679449385,-519.4552829,0.00041095,120]
[355885250,1741679449395,-500.0,0.00041095,120]
[355885251,1741679449404,-500.0,0.00041095,120]
[355885252,1741679449413,-703.65,0.00041095,120]
[355885253,1741679449426,-151.0,0.00041095,14]
[355885254,1741679449436,-997.62,0.00041095,120]
[355885255,1741679449445,-500.0,0.00041095,120]
[355885256,1741679449455,-500.0,0.00041095,120]
[355885257,1741679449465,-500.0,0.00041095,120]
[355885258,1741679449476,-500.0,0.00041095,120]
[355885259,1741679449486,-500.0,0.00041095,120]
[355885260,1741679449496,-620.67,0.00041095,120]
[355885261,1741679449505,-500.0,0.00041095,120]
[355885262,1741679449516,-2849.52,0.00041095,120]
[355885263,1741679449526,-500.0,0.00041095,120]
[355885264,1741679449536,-500.0,0.00041095,120]
[355885265,1741679449545,-500.0,0.00041095,120]
[355885266,1741679449555,-500.0,0.00041095,120]
[355885267,1741679449565,-676.09,0.00041095,120]
[355885268,1741679449574,-529.21616675,0.00041095,120]
[355885269,1741679449584,-500.0,0.00041095,120]
[355885270,1741679449593,-500.0,0.00041095,120]
[355885271,1741679449603,-500.0,0.00041095,120]
[355885272,1741679449612,-500.0,0.00041095,120]
[355885273,1741679449622,-500.0,0.00041095,120]
[355885274,1741679449631,-500.0,0.00041095,120]
[355885275,1741679449641,-500.0,0.00041095,120]
[355885276,1741679449650,-719.08,0.00041095,120]
[355885277,1741679449660,-500.0,0.00041095,120]
[355885278,1741679449671,-500.0,0.00041095,120]
[355885279,1741679449680,-513.65443464,0.00041095,120]
[355885280,1741679449690,-500.0,0.00041095,120]
[355885281,1741679449700,-627.06979101,0.00041095,120]
[355885282,1741679449711,-616.74,0.00041095,120]
[355885283,1741679449720,-151.0,0.00041095,14]
[355885284,1741679449730,-500.0,0.00041095,120]
[355885285,1741679449740,-408.82221524,0.00041095,120]
[355885286,1741679449750,-500.0,0.00041095,120]
[355885287,1741679449759,-500.0,0.00041095,120]
[355885288,1741679449769,-2568.23,0.00041095,120]
[355885289,1741679449778,-258.53344888,0.00041095,120]
[355885290,1741679449789,-500.0,0.00041095,30]
[355885291,1741679449799,-500.0,0.00041095,120]
[355885292,1741679449808,-500.0,0.00041095,120]
[355885293,1741679449818,-500.0,0.00041095,120]
[355885294,1741679449827,-504.43413911,0.00041095,120]
[355885295,1741679449837,-560.61,0.00041095,120]
[355885296,1741679449856,-500.0,0.00041095,120]
[355885297,1741679449866,-500.0,0.00041095,120]
[355885298,1741679449876,-500.0,0.00041095,2]
[355885299,1741679449886,-500.0,0.00041095,120]
[355885300,1741679449897,-743.95,0.00041095,120]
[355885301,1741679449907,-744.62,0.00041095,120]
[355885302,1741679449922,-1000.0,0.00041095,120]
[355885303,1741679449932,-1009.65,0.00041095,120]
[355885304,1741679449942,-500.0,0.00041095,120]
[355885305,1741679449951,-500.0,0.00041095,120]
[355885306,1741679449962,-500.0,0.00041095,120]
[355885307,1741679449972,-514.73343488,0.00041095,120]
[355885308,1741679449981,-500.0,0.00041095,120]
[355885309,1741679449991,-500.0,0.00041095,120]
[355885310,1741679450000,-511.10052344,0.00041095,120]
[355885311,1741679450010,-479.03597165,0.00041095,120]
[355885312,1741679450020,-500.0,0.00041095,120]
[355885313,1741679450030,-535.01994078,0.00041095,120]
[355885314,1741679450039,-500.0,0.00041095,120]
[355885315,1741679450048,-587.83,0.00041095,120]
[355885316,1741679450058,-901.99,0.00041095,120]
[355885317,1741679450068,-500.0,0.00041095,120]
[355885318,1741679450078,-500.0,0.00041095,120]
[355885319,1741679450088,-500.0,0.00041095,120]
[355885320,1741679450097,-500.0,0.00041095,120]
[355885321,1741679450107,-500.0,0.00041095,120]
[355885322,1741679450117,-500.0,0.00041095,120]
[355885323,1741679450126,-620.26,0.00041095,120]
[355885324,1741679450136,-634.48,0.00041095,120]
[355885325,1741679450145,-500.0,0.00041095,120]
[355885326,1741679450155,-500.0,0.00041095,120]
[355885327,1741679450165,-500.0,0.00041095,120]
[355885328,1741679450175,-500.0,0.00041095,120]
[355885329,1741679450185,-605.14419699,0.00041095,120]
[355885330,1741679450196,-500.0,0.00041095,120]
[355885331,1741679450207,-516.33980482,0.00041095,120]
[355885332,1741679450216,-744.29,0.00041095,120]
[355885333,1741679450227,-500.0,0.00041095,120]
[355885334,1741679450236,-585.68,0.00041095,3]
[355885335,1741679450246,-500.0,0.00041095,120]
[355885336,1741679450255,-517.74320305,0.00041095,120]
[355885337,1741679450265,-500.0,0.00041095,120]
[355885338,1741679450277,-500.0,0.00041095,120]
[355885339,1741679450287,-510.31545895,0.00041095,120]
[355885340,1741679450297,-1068.97,0.00041095,120]
[355885341,1741679450307,-500.0,0.00041095,120]
[355885342,1741679450317,-614.61,0.00041095,120]
[355885343,1741679450327,-500.0,0.00041095,120]
[355885344,1741679450336,-500.0,0.00041095,120]
[355885345,1741679450350,-611.0,0.00041095,120]
[355885346,1741679450360,-500.0,0.00041095,120]
[355885347,1741679450371,-500.0,0.00041095,120]
[355885348,1741679450381,-511.71417536,0.00041095,120]
[355885349,1741679450395,-529.29825262,0.00041095,120]
[355885350,1741679450405,-522.52348901,0.00041095,120]
[355885351,1741679450415,-500.0,0.00041095,120]
[355885352,1741679450426,-500.0,0.00041095,120]
[355885353,1741679450436,-500.0,0.00041095,120]
[355885354,1741679450446,-500.0,0.00041095,120]
[355885355,1741679450456,-500.0,0.00041095,120]
[355885356,1741679450465,-500.0,0.00041095,120]
[355885357,1741679450475,-517.53788846,0.00041095,120]
[355885358,1741679450485,-500.0,0.00041095,120]
[355885359,1741679450495,-509.27336176,0.00041095,120]
[355885360,1741679450504,-861.27,0.00041095,120]
[355885361,1741679450514,-500.0,0.00041095,120]
[355885362,1741679450526,-500.0,0.00041095,120]
[355885363,1741679450535,-500.0,0.00041095,120]
[355885364,1741679450545,-662.09,0.00041095,120]
[355885365,1741679450555,-500.0,0.00041095,120]
[355885366,1741679450564,-720.39,0.00041095,120]
[355885367,1741679450574,-150.38692797,0.00041095,120]
[355885368,1741679450584,-500.0,0.00041095,120]
[355885369,1741679450593,-4859.07,0.00041095,120]
[355885370,1741679450603,-889.05,0.00041095,120]
[355885371,1741679450612,-804.14,0.00041095,120]
[355885372,1741679450622,-533.35605914,0.00041095,120]
[355885373,1741679450632,-500.0,0.00041095,21]
[355885374,1741679450641,-500.0,0.00041095,120]
[355885375,1741679450651,-1180.41,0.00041095,120]
[355885376,1741679450660,-500.0,0.00041095,120]
[355885377,1741679450671,-995.31,0.00041095,120]
[355885378,1741679450681,-554.0998336,0.00041095,120]
[355885379,1741679450691,-5934.36,0.00041095,120]
[355885380,1741679450701,-1390.37,0.00041095,120]
[355885381,1741679450711,-500.0,0.00041095,120]
[355885382,1741679450721,-1007.51,0.00041095,120]
[355885383,1741679450730,-516.81,0.00041095,120]
[355885384,1741679450740,-745.13,0.00041095,120]
[355885385,1741679450749,-500.0,0.00041095,120]
[355885386,1741679450758,-1094.99,0.00041095,120]
[355885387,1741679450768,-1098.83,0.00041095,120]
[355885388,1741679450780,-500.0,0.00041095,120]
[355885389,1741679450790,-872.84,0.00041095,120]
[355885390,1741679450799,-133385.10460776,0.00041095,7]
[355885395,1741679956246,7588.55809162,0.00026,3]
[355885396,1741679973005,160.0,0.0002,3]
[355885397,1741679973498,160.0,0.0002,3]
[355885401,1741680346997,844.23,0.00026,3]
[355885421,1741680431143,-153.89,0.00026,2]
[355885422,1741680431167,-500.0,0.00035,120]
[355885423,1741680431190,-265.608116,0.0003589,2]
[355885424,1741680431212,-1386.9916653,0.000359,7]
[355885425,1741680431236,-168.03423732,0.00038895,113]
[355885426,1741680431257,-300.40077388,0.00038995,2]
[355885427,1741680431289,-400.0,0.00038999,5]
[355885428,1741680431312,-398.0,0.00039,2]
[355885429,1741680431332,-500.0,0.00039,120]
[355885430,1741680431354,-312.72665297,0.00039,7]
[355885437,1741680440093,-3721.92134954,0.00039,7]
[355885442,1741680572025,413.60678155,0.000369,2]
[355885443,1741680611276,471.85931,0.00038321,2]
[355885471,1741680632607,-289.11078216,0.000389,114]
[355885472,1741680632617,-1390.83944669,0.000389,8]
[355885473,1741680632626,-44.71727859,0.00038999,5]
[355885499,1741680638034,-355.28272141,0.00038999,5]
[355885500,1741680638044,-17004.35199749,0.00039,7]
[355885501,1741680638054,-160.0,0.00039,7]
[355885502,1741680638063,-1271.86749635,0.000399,2]
[355885504,1741680638073,-150.8,0.00039963,2]
[355885506,1741680638083,-2000.0,0.00039969,4]
[355885508,1741680638092,-636.88418316,0.00039973,5]
[355885510,1741680638102,-500.0,0.00039973,5]
[355885511,1741680638111,-319.24796946,0.00039973,5]
[355885512,1741680638121,-500.0,0.00039973,5]
[355885513,1741680638131,-558.32215513,0.00039973,5]
[355885514,1741680638141,-500.0,0.00039973,5]
[355885515,1741680638150,-500.0,0.00039973,2]
[355885516,1741680638159,-154.1123787,0.00039973,5]
[355885517,1741680638169,-500.0,0.00039973,5]
[355885518,1741680638178,-500.0,0.00039973,5]
[355885519,1741680638188,-500.0,0.00039973,5]
[355885520,1741680638198,-500.0,0.00039973,5]
[355885521,1741680638207,-500.0,0.00039973,5]
[355885522,1741680638217,-160.0,0.00039973,2]
[355885523,1741680638227,-500.0,0.00039973,5]
[355885524,1741680638236,-500.0,0.00039973,5]
[355885525,1741680638245,-501.70277733,0.00039973,5]
[355885526,1741680638255,-524.95,0.00039989,3]
[355885527,1741680638265,-164614.309623,0.0003999,10]
[355885528,1741680638275,-589.79388798,0.00039998,31]
[355885529,1741680638284,-496.34481319,0.00039998,31]
[355885530,1741680638294,-186.33076202,0.00039998,31]
[355885531,1741680638304,-162.35441961,0.00039998,31]
[355885532,1741680638314,-500.0,0.00039998,2]
[355885533,1741680638324,-500.0,0.00039998,2]
[355885534,1741680638334,-500.0,0.00039998,2]
[355885535,1741680638343,-500.0,0.00039998,2]
[355885536,1741680638353,-500.0,0.00039998,2]
[355885537,1741680638362,-500.0,0.00039998,2]
[355885538,1741680638371,-500.0,0.00039998,2]
[355885539,1741680638381,-500.0,0.00039998,2]
[355885540,1741680638390,-201.64363127,0.00039998,2]
[355885541,1741680638399,-500.0,0.00039998,2]
[355885542,1741680638408,-500.0,0.00039998,2]
[355885543,1741680638418,-500.0,0.00039998,2]
[355885544,1741680638427,-500.0,0.00039998,2]
[355885545,1741680638436,-500.0,0.00039998,2]
[355885546,1741680638445,-240.66697486,0.00039998,2]
[355885547,1741680638455,-500.0,0.00039998,2]
[355885548,1741680638464,-80395.27456606,0.00039999,40]
[355885549,1741680638474,-3800000.0,0.00039999,2]
[355885550,1741680638484,-160.0,0.0004,120]
[355885551,1741680638493,-19749.7963657,0.0004,7]
[355885552,1741680638503,-453.18589685,0.0004,15]
[355885553,1741680638512,-155.4171311,0.00040054,30]
[355885554,1741680638522,-590.1746896,0.00040054,30]
[355885555,1741680638531,-776.99658538,0.00040108,2]
[355885556,1741680638540,-158.837556,0.0004018,60]
[355885557,1741680638550,-158.837556,0.00040278,3]
[355885558,1741680638559,-167.671834,0.00040278,3]
[355885559,1741680638568,-289.11078214,0.00040451,120]
[355885560,1741680638578,-776.99658538,0.00040542,2]
[355885561,1741680638588,-1000.0,0.000406,38]
[355885562,1741680638597,-2235.79461833,0.000406,90]
[355885563,1741680638606,-1271.86749635,0.00040644,28]
[355885564,1741680638616,-2677.88,0.0004068,60]
[355885565,1741680638625,-346.62094443,0.000407,2]
[355885566,1741680638634,-151.0,0.00040771,2]
[355885567,1741680638643,-1000.0,0.00040771,2]
[355885568,1741680638653,-600.0,0.00040771,2]
[355885569,1741680638663,-500.0,0.00040773,5]
[355885570,1741680638672,-500.0,0.00040773,5]
[355885571,1741680638682,-346.62094441,0.00040774,2]
[355885572,1741680638691,-776.99658538,0.00040775,2]
[355885573,1741680638701,-174.98,0.00040775,3]
[355885574,1741680638710,-87962.1273703,0.00040785,3]
[355885575,1741680638721,-12522.2200889,0.00040785,3]
[355885576,1741680638732,-15572.92107546,0.00040785,3]
[355885577,1741680638742,-160.0,0.00040785,3]
[355885578,1741680638752,-500.0,0.00040794,120]
[355885579,1741680638761,-222000.0,0.00040795,2]
[355885580,1741680638770,-5021.51,0.000408,30]
[355885581,1741680638781,-476.86,0.000408,30]
[355885582,1741680638790,-622.2,0.00040826,2]
[355885583,1741680638799,-346.62094441,0.00040848,2]
[355885584,1741680638809,-559.4225717,0.00040876,30]
[355885585,1741680638821,-182.882691,0.00040876,30]
[355885586,1741680638831,-645.2214,0.00040881,2]
[355885587,1741680638840,-203.54,0.00040894,2]
[355885588,1741680638850,-346.62094441,0.00040921,2]
[355885589,1741680638859,-669.0945918,0.00040936,2]
[355885590,1741680638869,-70369.7018962,0.00040945,3]
[355885591,1741680638878,-10017.7760712,0.00040945,3]
[355885592,1741680638888,-466.0322314,0.00040949,30]